Workbook

Sheet Menu and documents

Sheet Certificate Builder
B3: Certificate Builder
B7: bonus certificate
C10: zero strike call | D10: down and out put | G10: Underlying | H10: zero | I10: down and out put | J10: Profit/Loss
C11: long | D11: long | H11: long | I11: long
B13: Underlying | C13: 100 | D13: 100 | G13: 50 | H13: =Payoff_EoT($G13,C$14,C$19,C$21,11,"long") -> -50 | I13: =Payoff_EoT($G13,D$14,D$19,D$21,6,"long") -> -0.2397206423 | J13: =H13+I13 -> -50.23972064
B14: Strike | D14: 90 | G14: 60 | H14: =Payoff_EoT($G14,C$14,C$19,C$21,11,"long") -> -40 | I14: =Payoff_EoT($G14,D$14,D$19,D$21,6,"long") -> -0.2397206423 | J14: =H14+I14 -> -40.23972064
B15: Interest | D15: 0.01 | G15: 70 | H15: -30 | I15: -0.2397206423 | J15: -30.23972064
B16: Dividend | D16: 0 | G16: 80 | H16: -20 | I16: 9.760279358 | J16: -10.23972064
B17: Vola | D17: 0.2 | G17: 90 | H17: -10 | I17: -0.2397206423 | J17: -10.23972064
B18: Maturity | D18: 1.2 | G18: 100 | H18: 0 | I18: -0.2397206423 | J18: -0.2397206423
B19: Barrier | D19: 80 | G19: 110 | H19: 10 | I19: -0.2397206423 | J19: 9.760279358
G20: 120 | H20: 20 | I20: -0.2397206423 | J20: 19.76027936
B21: Theoretical Price | C21: =C13 -> 100 | D21: =Barrier_Option(D13,D14,D15,D16,D17,D18,D19,6) -> 0.2397206423 | G21: 130 | H21: 30 | I21: -0.2397206423 | J21: 29.76027936
B22: Price of Certificate | C22: =C21+D21 -> 100.2397206 | G22: 140 | H22: 40 | I22: -0.2397206423 | J22: 39.76027936
G23: 150 | H23: 50 | I23: -0.2397206423 | J23: 49.76027936
B26: capped bonus certificate
C29: zero strinke call | D29: down and out put | E29: call | G29: Underlying | H29: zero | I29: down and out put | J29: call | K29: Profit/Loss
C30: long | D30: long | E30: short | H30: long | I30: long | J30: short
B32: Underlying | C32: 100 | D32: 100 | E32: 100 | G32: 50 | H32: =Payoff_EoT($G32,C$33,C$38,C$40,11,"long") -> -50 | I32: =Payoff_EoT($G32,D$33,D$38,D$40,6,"long") -> -0.2397206423 | J32: =Payoff_EoT($G32,E$33,E$38,-E$40,9,"short") -> 5.4050775 | K32: =H32+I32+J32 -> -44.83464314
B33: Strike | D33: 90 | E33: 110 | G33: 60 | H33: =Payoff_EoT($G33,C$33,C$38,C$40,11,"long") -> -40 | I33: =Payoff_EoT($G33,D$33,D$38,D$40,6,"long") -> -0.2397206423 | J33: =Payoff_EoT($G33,E$33,E$38,-E$40,9,"short") -> 5.4050775 | K33: =H33+I33+J33 -> -34.83464314
B34: Interest | D34: 0.01 | E34: 0.01 | G34: 70 | H34: -30 | I34: -0.2397206423 | J34: 5.4050775 | K34: -24.83464314
B35: Dividend | D35: 0 | E35: 0 | G35: 80 | H35: -20 | I35: 9.760279358 | J35: 5.4050775 | K35: -4.834643142
B36: Vola | D36: 0.2 | E36: 0.2 | G36: 90 | H36: -10 | I36: -0.2397206423 | J36: 5.4050775 | K36: -4.834643142
B37: Maturity | D37: 1.2 | E37: 1.2 | G37: 100 | H37: 0 | I37: -0.2397206423 | J37: 5.4050775 | K37: 5.165356858
B38: Barrier | D38: 80 | G38: 110 | H38: 10 | I38: -0.2397206423 | J38: 5.4050775 | K38: 15.16535686
G39: 120 | H39: 20 | I39: -0.2397206423 | J39: -4.5949225 | K39: 15.16535686
B40: Theoretical Price | C40: =C32 -> 100 | D40: =Barrier_Option(D32,D33,D34,D35,D36,D37,D38,6) -> 0.2397206423 | E40: =-Black_Scholes_Call(E32,E33,E34,E35,E36,E37) -> -5.4050775 | G40: 130 | H40: 30 | I40: -0.2397206423 | J40: -14.5949225 | K40: 15.16535686
B41: Price of Certificate | C41: =C40+D40+E40 -> 94.83464314 | G41: 140 | H41: 40 | I41: -0.2397206423 | J41: -24.5949225 | K41: 15.16535686
G42: 150 | H42: 50 | I42: -0.2397206423 | J42: -34.5949225 | K42: 15.16535686
B45: discount certificate/reverse convertible
C48: zero strike call | D48: call | G48: Underlying | H48: zero | I48: call | J48: Profit/Loss
C49: long | D49: short | H49: long | I49: short
B51: Underlying | C51: 100 | D51: 100 | G51: 50 | H51: =Payoff_EoT($G51,C$52,C$57,C$58,11,"long") -> -50 | I51: =Payoff_EoT($G51,D$52,D$57,-D$58,9,"short") -> 0.1981730446 | J51: =H51+I51 -> -49.80182696
B52: Strike | D52: 110 | G52: 60 | H52: =Payoff_EoT($G52,C$52,C$57,C$58,11,"long") -> -40 | I52: =Payoff_EoT($G52,D$52,D$57,-D$58,9,"short") -> 0.1981730446 | J52: =H52+I52 -> -39.80182696
B53: Interest | D53: 0.01 | G53: 70 | H53: -30 | I53: 0.1981730446 | J53: -29.80182696
B54: Dividend | D54: 0 | G54: 80 | H54: -20 | I54: 0.1981730446 | J54: -19.80182696
B55: Vola | D55: 0.2 | G55: 90 | H55: -10 | I55: 0.1981730446 | J55: -9.801826955
B56: Maturity | D56: 0.1 | G56: 100 | H56: 0 | I56: 0.1981730446 | J56: 0.1981730446
G57: 110 | H57: 10 | I57: 0.1981730446 | J57: 10.19817304
B58: Theoretical Price | C58: =C51 -> 100 | D58: =-Black_Scholes_Call(D51,D52,D53,D54,D55,D56) -> -0.1981730446 | G58: 120 | H58: 20 | I58: -9.801826955 | J58: 10.19817304
B59: Price of Certificate | C59: =C58+D58 -> 99.80182696 | G59: 130 | H59: 30 | I59: -19.80182696 | J59: 10.19817304
G60: 140 | H60: 40 | I60: -29.80182696 | J60: 10.19817304
G61: 150 | H61: 50 | I61: -39.80182696 | J61: 10.19817304
B63: outperformance certificate
C66: zero strike call | D66: call | G66: Underlying | H66: zero | I66: call | J66: Profit/Loss
C67: long | D67: long | H67: long | I67: long
B69: Underlying | C69: 100 | D69: 100 | G69: 50 | H69: =Payoff_EoT($G69,C$70,C$75,C$76,11,"long") -> -50 | I69: =Payoff_EoT($G69,D$70,D$75,D$76,9,"long") -> -5.4050775 | J69: =H69+I69 -> -55.4050775
B70: Strike | D70: 110 | G70: 60 | H70: =Payoff_EoT($G70,C$70,C$75,C$76,11,"long") -> -40 | I70: =Payoff_EoT($G70,D$70,D$75,D$76,9,"long") -> -5.4050775 | J70: =H70+I70 -> -45.4050775
B71: Interest | D71: 0.01 | G71: 70 | H71: -30 | I71: -5.4050775 | J71: -35.4050775
B72: Dividend | D72: 0 | G72: 80 | H72: -20 | I72: -5.4050775 | J72: -25.4050775
B73: Vola | D73: 0.2 | G73: 90 | H73: -10 | I73: -5.4050775 | J73: -15.4050775
B74: Maturity | D74: 1.2 | G74: 100 | H74: 0 | I74: -5.4050775 | J74: -5.4050775
G75: 110 | H75: 10 | I75: -5.4050775 | J75: 4.5949225
B76: Theoretical Price | C76: =C69 -> 100 | D76: =Black_Scholes_Call(D69,D70,D71,D72,D73,D74) -> 5.4050775 | G76: 120 | H76: 20 | I76: 4.5949225 | J76: 24.5949225
B77: Price of Certificate | C77: =C76+D76 -> 105.4050775 | G77: 130 | H77: 30 | I77: 14.5949225 | J77: 44.5949225
G78: 140 | H78: 40 | I78: 24.5949225 | J78: 64.5949225
G79: 150 | H79: 50 | I79: 34.5949225 | J79: 84.5949225
B81: sprint certificate
C84: zero strike call | D84: call | E84: call | G84: Underlying | H84: zero | I84: call | J84: call | K84: Profit/Loss
C85: long | D85: long | E85: short | H85: long | I85: long | J85: short
B87: Underlying | C87: 100 | D87: 100 | E87: 100 | G87: 50 | H87: =Payoff_EoT($G87,C$88,C$93,C$94,11,"long") -> -50 | I87: =Payoff_EoT($G87,D$88,D$93,D$94,9,"long") -> -14.92522838 | J87: =Payoff_EoT($G87,E$88,E$93,-E$94,9,"short") -> 5.4050775 | K87: =H87+I87+J87 -> -59.52015088
B88: Strike | D88: 90 | E88: 110 | G88: 60 | H88: =Payoff_EoT($G88,C$88,C$93,C$94,11,"long") -> -40 | I88: =Payoff_EoT($G88,D$88,D$93,D$94,9,"long") -> -14.92522838 | J88: =Payoff_EoT($G88,E$88,E$93,-E$94,9,"short") -> 5.4050775 | K88: =H88+I88+J88 -> -49.52015088
B89: Interest | D89: 0.01 | E89: 0.01 | G89: 70 | H89: -30 | I89: -14.92522838 | J89: 5.4050775 | K89: -39.52015088
B90: Dividend | D90: 0 | E90: 0 | G90: 80 | H90: -20 | I90: -14.92522838 | J90: 5.4050775 | K90: -29.52015088
B91: Vola | D91: 0.2 | E91: 0.2 | G91: 90 | H91: -10 | I91: -14.92522838 | J91: 5.4050775 | K91: -19.52015088
B92: Maturity | D92: 1.2 | E92: 1.2 | G92: 100 | H92: 0 | I92: -4.925228379 | J92: 5.4050775 | K92: 0.4798491205
G93: 110 | H93: 10 | I93: 5.074771621 | J93: 5.4050775 | K93: 20.47984912
B94: Theoretical Price | C94: =C87 -> 100 | D94: =Black_Scholes_Call(D87,D88,D89,D90,D91,D92) -> 14.92522838 | E94: =-Black_Scholes_Call(E87,E88,E89,E90,E91,E92) -> -5.4050775 | G94: 120 | H94: 20 | I94: 15.07477162 | J94: -4.5949225 | K94: 30.47984912
B95: Price of Certificate | C95: =C94+D94+E94 -> 109.5201509 | G95: 130 | H95: 30 | I95: 25.07477162 | J95: -14.5949225 | K95: 40.47984912
G96: 140 | H96: 40 | I96: 35.07477162 | J96: -24.5949225 | K96: 50.47984912
G97: 150 | H97: 50 | I97: 45.07477162 | J97: -34.5949225 | K97: =H97+I97+J97 -> 60.47984912
B99: turbo certificate with down and our call
C102: down and out call | G102: Underlying | H102: down and out call | I102: Profit/Loss
C103: long | H103: long
B105: Underlying | C105: 100 | G105: 50 | H105: =Payoff_EoT($G105,C$106,C$112,C$113,2,"long") -> -14.3876518 | I105: =H105 -> -14.3876518
B106: Strike | C106: 90 | G106: 60 | H106: =Payoff_EoT($G106,C$106,C$112,C$113,2,"long") -> -14.3876518 | I106: =H106 -> -14.3876518
B107: Interest | C107: 0.01 | G107: 70 | H107: -14.3876518 | I107: -14.3876518
B108: Dividend | C108: 0 | G108: 80 | H108: -14.3876518 | I108: -14.3876518
B109: Vola | C109: 0.2 | G109: 90 | H109: -14.3876518 | I109: -14.3876518
B110: Maturity | C110: 1.2 | G110: 100 | H110: -4.387651795 | I110: -4.387651795
B111: Barrier | C111: 80 | G111: 110 | H111: 5.612348205 | I111: 5.612348205
G112: 120 | H112: 15.6123482 | I112: 15.6123482
B113: Theoretical Price | C113: =Barrier_Option(C105,C106,C107,C108,C109,C110,C111,2) -> 14.3876518 | G113: 130 | H113: 25.6123482 | I113: 25.6123482
B114: Price of Certificate | C114: =C113 -> 14.3876518 | G114: 140 | H114: 35.6123482 | I114: 35.6123482
G115: 150 | H115: 45.6123482 | I115: 45.6123482

Sheet Historical volatility
B2: Historical volatility (annualized)
B4: Date | C4: Closing price | D4: Change
B5: 2000-12-31 | C5: 100.5
B6: 2001-12-31 | C6: 76.5 | D6: =LN(C6/C5) -> -0.2728669867
B7: 2002-12-31 | C7: 40.8 | D7: -0.6286086594
B8: 2003-12-31 | C8: 65.1 | D8: 0.4672424678
B9: 2004-12-31 | C9: 64.4 | D9: -0.0108109161
B10: 2005-12-31 | C10: 70.8 | D10: 0.09474536759
B11: 2006-12-31 | C11: 75.5 | D11: 0.06427365556
B12: 2007-12-31 | C12: 100.05 | D12: 0.2815374048
B13: 2008-12-31 | C13: 48.8 | D13: -0.7179397482
B14: 2009-12-31 | C14: 60.95 | D14: 0.2223235431
B16: Result
B17: Average return | D17: =AVERAGE(D5:D14) -> -0.05556709684
B18: Variance | D18: =VARP(D5:D14) -> 0.146387184
B19: Standard deviation | D19: =STDEVP(D5:D14) -> 0.3826057815

Sheet Monthly volatility
B2: Monthly volatility
B4: Date | C4: Closing price | D4: Change
B5: 2008-12-29 | C5: 50.81
B6: 2009-01-31 | C6: 43.57 | D6: =LN(C6/C5) -> -0.1537243455
B7: 2009-02-28 | C7: 39.07 | D7: =LN(C7/C6) -> -0.1090139311
B8: 2009-03-30 | C8: 41.45 | D8: 0.05913297251
B9: 2009-04-30 | C9: 50.2 | D9: 0.1915271451
B10: 2009-05-31 | C10: 51.38 | D10: 0.02323396498
B11: 2009-06-29 | C11: 48.97 | D11: -0.04804112597
B12: 2009-07-31 | C12: 55.13 | D12: 0.1184861669
B13: 2009-08-31 | C13: 60.16 | D13: 0.08731364704
B14: 2009-09-28 | C14: 62.97 | D14: 0.04565074286
B15: 2009-10-31 | C15: 61.1 | D15: -0.03014655632
B16: 2009-11-30 | C16: 64.99 | D16: 0.06172154573
B17: 2009-12-30 | C17: 64.21 | D17: -0.0120744501
B19: Monthly perspective | F19: Annual values
B20: Average return | D20: =AVERAGE(D6:D17) -> 0.01950548135 | F20: Average return | H20: =12*D20 -> 0.2340657762
B21: Variance | D21: =VARP(D6:D17) -> 0.008548963336 | F21: Variance | H21: =12*D21 -> 0.10258756
B22: Standard deviation | D22: =STDEVP(D6:D17) -> 0.09246060424 | F22: Standard deviation | H22: =SQRT(H21) -> 0.3202929285

Sheet Implied volatility
B2: Implied volatility
B4: Implied volatility from the price of the call | E4: Derivation of call volatility from the price of the put
B5: Price of the underlying | C5: 23 | E5: Price of the underlying | F5: 35
B6: Strike price | C6: 24 | E6: Strike price | F6: 35
B7: Period in years | C7: 0.5 | E7: Period in years | F7: 1
B8: Risk-free rate of interest | C8: 0.03 | E8: Risk-free rate of interest | F8: 0.06
B9: Option price call | C9: 5.25 | E9: Option price put | F9: 3.44
B10: Implied volatility | C10: =Callvolatility(C5,C6,C7,C8,C9) -> 0.8590416908 | E10: Implied volatility | F10: =PutVolatility(F5,F6,F7,F8,F9) -> 0.324903965

Sheet Change in option price
B2: Effect of term to maturity on option price
B4: Strike price of the option | C4: Expiry | D4: Price of call option | E4: Price of put option
B5: 50 | C5: Aug-08 | D5: 0.65 | E5: 1.45
B6: 50 | C6: 2022-09-01 | D6: 1.35 | E6: 2
B7: 50 | C7: 2008-10-01 | D7: 1.8 | E7: 2.55
B8: 50 | C8: 2009-01-01 | D8: 2.9 | E8: 3.4
B9: 50 | C9: 2010-01-01 | D9: 5.4 | E9: 5.2
B10: 50 | C10: 2011-01-01 | D10: 6.8 | E10: 5.8

Sheet Moneyness
B2: Moneyness
B4: Underlying | E4: 60
B6: Period considered | C6: Strike price | D6: Call price | E6: In-the-Money or Out-of-the-money
B7: Aug01 | C7: 7.5 | D7: 11.9
B8: Aug01 | C8: 10 | D8: 9.6
B9: Aug01 | C9: 12.5 | D9: 6.5
B10: Aug01 | C10: 15 | D10: 4.2
B11: Aug01 | C11: 17.5 | D11: 2.1
B12: Aug01 | C12: 20 | D12: 0.65
B13: Aug01 | C13: 22.5 | D13: 0.15
B14: Aug01 | C14: 25 | D14: 0.05
B15: Aug01 | C15: 27.5 | D15: 0.1
B16: Aug01 | C16: 30 | D16: 0.1
B17: Aug01 | C17: 32.5 | D17: 0.05
B18: Aug01 | C18: 35 | D18: 0.05
B19: 2009-01-15 | C19: 50 | D19: 6.9 | E19: =IF($E$4>C19,"IN-THE-MONEY","OUT-OF-THE-MONEY") -> IN-THE-MONEY
B20: 2009-01-16 | C20: 55 | D20: 5 | E20: =IF($E$4>C20,"IN-THE-MONEY","OUT-OF-THE-MONEY") -> IN-THE-MONEY
B21: 2009-01-17 | C21: 57 | D21: 3.2 | E21: IN-THE-MONEY
B22: 2009-01-18 | C22: 60 | D22: 1.8 | E22: OUT-OF-THE-MONEY
B23: 2009-01-19 | C23: 62.5 | D23: 0.95 | E23: OUT-OF-THE-MONEY
B24: 2009-01-20 | C24: 65 | D24: 0.45 | E24: OUT-OF-THE-MONEY
B25: 2009-01-21 | C25: 67 | D25: 0.2 | E25: OUT-OF-THE-MONEY
B26: 2009-01-22 | C26: 70 | D26: 0.15 | E26: OUT-OF-THE-MONEY
B28: Period considered | C28: Strike price | D28: Put price | E28: In-the-Money or Out-of-the-money
B29: 2009-01-22 | C29: 50 | D29: 0.1 | E29: =IF(C29>$E$4,"IN-THE-MONEY","OUT-OF-THE-MONEY") -> OUT-OF-THE-MONEY
B30: 2009-01-23 | C30: 55 | D30: 0.25 | E30: =IF(C30>$E$4,"IN-THE-MONEY","OUT-OF-THE-MONEY") -> OUT-OF-THE-MONEY
B31: 2009-01-24 | C31: 57 | D31: 0.65 | E31: OUT-OF-THE-MONEY
B32: 2009-01-25 | C32: 60 | D32: 1.4 | E32: OUT-OF-THE-MONEY
B33: 2009-01-26 | C33: 62.5 | D33: 2.55 | E33: IN-THE-MONEY
B34: 2009-01-27 | C34: 65 | D34: 4.1 | E34: IN-THE-MONEY
B35: 2009-01-28 | C35: 67 | D35: 6 | E35: IN-THE-MONEY
B36: 2009-01-29 | C36: 70 | D36: 7.5 | E36: IN-THE-MONEY
B37: 2009-01-30 | C37: 72.5 | D37: 10.7 | E37: IN-THE-MONEY

Sheet Replication method
B2: Replication method
B4: Securities
B5: Share: | C5: Siemens (x)
B6: Bond: | C6: One year zero bond (y)
B8: Call
B9: Share price in t0 | C9: 61.73
B10: Increase in % | C10: 0.40495
B11: Decline in % | C11: 0.2882296772
B12: Share price t1 è Price increase | C12: =C9*(1+C10) -> 86.7275635
B13: Share price t1 è Price decline | C13: =C9*(1-C11) -> 43.93758202
B14: Call price at expiry | C14: =IF(C12>C9,(C12-C9),0)+IF(C13>C9,(C13-C9),0) -> 24.9975635
B16: Replication model
B17: Share price in t0 | C17: 61.73
B18: Increase in % | C18: 0.40495
B19: Decline in % | C19: 0.2882296772
B20: Share price t1 è Price increase | C20: =C17*(1+C18) -> 86.7275635
B21: Share price t1 è Price decline | C21: =C17*(1-C19) -> 43.93758202
B22: Zero bond t0 | C22: 61.73
B23: Interest rate on zero bond (risk-free) in % | C23: 0.01
B24: Zero bond t1 | C24: =C22*(1+C23) -> 62.3473
B26: Calculations
B27: Price increase | C27: 86,73x + 62,35y = 25,00
B28: Price decline | C28: 43,94x + 62,35y = 0
B30: Solving scenario price increase for x | C30: x = (25,00 - 62,35y)/86,73
B32: x = (25,00 - 62,35y)/86,73 into scenario Price decline
C34: y = | D34: =(C21*(C20-C17)/C20)/((C21*C24)/C20-C24) -> -0.4116935701
C35: x = | D35: =((C20-C17)-C24*D34)/C20 -> 0.5841919683
B37: Value of the portfolio
B38: Price of the call | C38: =D35*C17+D34*C22 -> 10.64832612

Sheet Binomial model (one period)
B2: Binomial model for one period
B4: Assumptions
B5: Price of underlying | D5: 100
B6: Volatility | D6: 0.34
B7: Strike price | D7: 100
B8: Risk-free rate of interest | D8: 0.01
B9: Time to maturity of option in years | D9: 1
B11: Calculations
B12: Up-factor | D12: =EXP(D6*SQRT(D9)) -> 1.404947591
B13: Down-factor | D13: =EXP(-D6*SQRT(D9)) -> 0.7117703228
B14: Pseudo probability q | D14: =(1+D8-D13)/(D12-D13) -> 0.4302358013
B17: Value development
B18: Time
B19: 0 | D19: 1
D20: =B21*D12 -> 140.4947591
B21: =D5 -> 100
D22: =B21*D13 -> 71.17703228
B24: Option tree
B25: Time
B26: 0 | D26: 1
D27: =IF(D20>D7,(D20-D7),0) -> 40.49475906
B28: =D27*D14/(1+D8)+D29*(1-D14)/(1+D8) -> 17.24979714
D29: =IF(D22>D7,(D22-D7),0) -> 0

Sheet Binomial (multi period)
B2: Binomial model in the multi period case
B5: Assumptions
B6: Price of underlying | D6: 100
B7: Volatility | D7: 0.34
B8: Strike price | D8: 100
B9: Risk-free rate of interest (annualized) | D9: 0.01
B10: Time to maturity of option in years | D10: 1
B11: Time to maturity of option in months | D11: 12
B13: Calculations
B14: Monthly up-factor | D14: =EXP(D7*SQRT(1/D11)) -> 1.103127741
B15: Monthly down-factor | D15: =EXP(-D7*SQRT(1/D11)) -> 0.9065133284
B16: Riskfree rate of interest (monthly) | D16: =(1+D9)^(1/12)-1 -> 0.0008295381143
B17: Pseudo probability q | D17: =(1+D16-D15)/(D14-D15) -> 0.4797014041
B20: Value development
B21: Time
B22: 0 | C22: 1 | D22: 2 | E22: 3 | F22: 4 | G22: 5 | H22: 6 | I22: 7 | J22: 8 | K22: 9 | L22: 10 | M22: 11 | N22: 12
N23: =M24*$D$14 -> 324.7204749
M24: =L25*$D$14 -> 294.3634385
L25: =K26*$D$14 -> 266.8443804 | N25: =M26*$D$14 -> 266.8443804
K26: =J27*$D$14 -> 241.8979875 | M26: =L27*$D$14 -> 241.8979875
J27: =I28*$D$14 -> 219.2837497 | L27: =K28*$D$14 -> 219.2837497 | N27: =M28*$D$14 -> 219.2837497
I28: =H29*$D$14 -> 198.7836418 | K28: =J29*$D$14 -> 198.7836418 | M28: =L29*$D$14 -> 198.7836418
H29: =G30*$D$14 -> 180.2000208 | J29: =I30*$D$14 -> 180.2000208 | L29: =K30*$D$14 -> 180.2000208 | N29: =M30*$D$14 -> 180.2000208
G30: =F31*$D$14 -> 163.3537206 | I30: =H31*$D$14 -> 163.3537206 | K30: =J31*$D$14 -> 163.3537206 | M30: =L31*$D$14 -> 163.3537206
F31: =E32*$D$14 -> 148.082325 | H31: =G32*$D$14 -> 148.082325 | J31: =I32*$D$14 -> 148.082325 | L31: =K32*$D$14 -> 148.082325 | N31: =M32*$D$14 -> 148.082325
E32: =D33*$D$14 -> 134.2386013 | G32: =F33*$D$14 -> 134.2386013 | I32: =H33*$D$14 -> 134.2386013 | K32: =J33*$D$14 -> 134.2386013 | M32: =L33*$D$14 -> 134.2386013
D33: =C34*$D$14 -> 121.6890813 | F33: =E34*$D$14 -> 121.6890813 | H33: =G34*$D$14 -> 121.6890813 | J33: =I34*$D$14 -> 121.6890813 | L33: =K34*$D$14 -> 121.6890813 | N33: =M34*$D$14 -> 121.6890813
C34: =B35*$D$14 -> 110.3127741 | E34: =D35*$D$14 -> 110.3127741 | G34: =F35*$D$14 -> 110.3127741 | I34: =H35*$D$14 -> 110.3127741 | K34: =J35*$D$14 -> 110.3127741 | M34: =L35*$D$14 -> 110.3127741
B35: =D6 -> 100 | D35: =C36*$D$14 -> 100 | F35: =E36*$D$14 -> 100 | H35: =G36*$D$14 -> 100 | J35: =I36*$D$14 -> 100 | L35: =K36*$D$14 -> 100 | N35: =M36*$D$14 -> 100
C36: =B35*$D$15 -> 90.65133284 | E36: =D37*$D$14 -> 90.65133284 | G36: =F37*$D$14 -> 90.65133284 | I36: =H37*$D$14 -> 90.65133284 | K36: =J37*$D$14 -> 90.65133284 | M36: =L37*$D$14 -> 90.65133284
D37: =C36*$D$15 -> 82.17664145 | F37: =E38*$D$14 -> 82.17664145 | H37: =G38*$D$14 -> 82.17664145 | J37: =I38*$D$14 -> 82.17664145 | L37: =K38*$D$14 -> 82.17664145 | N37: =M38*$D$14 -> 82.17664145
E38: =D37*$D$15 -> 74.49422076 | G38: =F39*$D$14 -> 74.49422076 | I38: =H39*$D$14 -> 74.49422076 | K38: =J39*$D$14 -> 74.49422076 | M38: =L39*$D$14 -> 74.49422076
F39: =E38*$D$15 -> 67.53000401 | H39: =G40*$D$14 -> 67.53000401 | J39: =I40*$D$14 -> 67.53000401 | L39: =K40*$D$14 -> 67.53000401 | N39: =M40*$D$14 -> 67.53000401
G40: =F39*$D$15 -> 61.2168487 | I40: =H41*$D$14 -> 61.2168487 | K40: =J41*$D$14 -> 61.2168487 | M40: =L41*$D$14 -> 61.2168487
H41: =G40*$D$15 -> 55.49388927 | J41: =I42*$D$14 -> 55.49388927 | L41: =K42*$D$14 -> 55.49388927 | N41: =M42*$D$14 -> 55.49388927
I42: =H41*$D$15 -> 50.30595027 | K42: =J43*$D$14 -> 50.30595027 | M42: =L43*$D$14 -> 50.30595027
J43: =I42*$D$15 -> 45.60301441 | L43: =K44*$D$14 -> 45.60301441 | N43: =M44*$D$14 -> 45.60301441
K44: =J43*$D$15 -> 41.33974038 | M44: =L45*$D$14 -> 41.33974038
L45: =K44*$D$15 -> 37.47502565 | N45: =M46*D14 -> 37.47502565
M46: =L45*$D$15 -> 33.97161023
N47: =M46*$D$15 -> 30.79571746
B52: Option tree
B53: Time
B54: 0 | C54: 1 | D54: 2 | E54: 3 | F54: 4 | G54: 5 | H54: 6 | I54: 7 | J54: 8 | K54: 9 | L54: 10 | M54: 11 | N54: 12
N55: =IF(N23>$D$8,(N23-$D$8),0) -> 224.7204749
M56: =N55*$D$17/(1+$D$16)+N57*(1-$D$17)/(1+$D$16) -> 194.4463236
L57: =M56*$D$17/(1+$D$16)+M58*(1-$D$17)/(1+$D$16) -> 167.0100818 | N57: =IF(N25>$D$8,(N25-$D$8),0) -> 166.8443804
K58: =L57*$D$17/(1+$D$16)+L59*(1-$D$17)/(1+$D$16) -> 142.1464366 | M58: =N57*$D$17/(1+$D$16)+N59*(1-$D$17)/(1+$D$16) -> 141.9808725
J59: =K58*$D$17/(1+$D$16)+K60*(1-$D$17)/(1+$D$16) -> 119.614878 | L59: =M58*$D$17/(1+$D$16)+M60*(1-$D$17)/(1+$D$16) -> 119.4494512 | N59: =IF(N27>$D$8,(N27-$D$8),0) -> 119.2837497
I60: =J59*$D$17/(1+$D$16)+J61*(1-$D$17)/(1+$D$16) -> 99.19738069 | K60: =L59*$D$17/(1+$D$16)+L61*(1-$D$17)/(1+$D$16) -> 99.03209096 | M60: =N59*$D$17/(1+$D$16)+N61*(1-$D$17)/(1+$D$16) -> 98.86652689
H61: =I60*$D$17/(1+$D$16)+I62*(1-$D$17)/(1+$D$16) -> 80.69630177 | J61: =K60*$D$17/(1+$D$16)+K62*(1-$D$17)/(1+$D$16) -> 80.53114905 | L61: =M60*$D$17/(1+$D$16)+M62*(1-$D$17)/(1+$D$16) -> 80.3657222 | N61: =IF(N29>$D$8,(N29-$D$8),0) -> 80.20002079
G62: =H61*$D$17/(1+$D$16)+H63*(1-$D$17)/(1+$D$16) -> 64.11538526 | I62: =J61*$D$17/(1+$D$16)+J63*(1-$D$17)/(1+$D$16) -> 63.76745948 | K62: =L61*$D$17/(1+$D$16)+L63*(1-$D$17)/(1+$D$16) -> 63.60216975 | M62: =N61*$D$17/(1+$D$16)+N63*(1-$D$17)/(1+$D$16) -> 63.43660568
F63: =G62*$D$17/(1+$D$16)+G64*(1-$D$17)/(1+$D$16) -> 49.61807027 | H63: =I62*$D$17/(1+$D$16)+I64*(1-$D$17)/(1+$D$16) -> 48.93044562 | J63: =K62*$D$17/(1+$D$16)+K64*(1-$D$17)/(1+$D$16) -> 48.41345324 | L63: =M62*$D$17/(1+$D$16)+M64*(1-$D$17)/(1+$D$16) -> 48.2480264 | N63: =IF(N31>$D$8,(N31-$D$8),0) -> 48.08232499
E64: =F63*$D$17/(1+$D$16)+F65*(1-$D$17)/(1+$D$16) -> 37.36553518 | G64: =H63*$D$17/(1+$D$16)+H65*(1-$D$17)/(1+$D$16) -> 36.33104176 | I64: =J63*$D$17/(1+$D$16)+J65*(1-$D$17)/(1+$D$16) -> 35.32912752 | K64: =L63*$D$17/(1+$D$16)+L65*(1-$D$17)/(1+$D$16) -> 34.48705043 | M64: =N63*$D$17/(1+$D$16)+N65*(1-$D$17)/(1+$D$16) -> 34.32148636
D65: =E64*$D$17/(1+$D$16)+E66*(1-$D$17)/(1+$D$16) -> 27.39262682 | F65: =G64*$D$17/(1+$D$16)+G66*(1-$D$17)/(1+$D$16) -> 26.12859893 | H65: =I64*$D$17/(1+$D$16)+I66*(1-$D$17)/(1+$D$16) -> 24.77265244 | J65: =K64*$D$17/(1+$D$16)+K66*(1-$D$17)/(1+$D$16) -> 23.32205578 | L65: =M64*$D$17/(1+$D$16)+M66*(1-$D$17)/(1+$D$16) -> 21.85478267 | N65: =IF(N33>$D$8,(N33-$D$8),0) -> 21.68908126
C66: =D65*$D$17/(1+$D$16)+D67*(1-$D$17)/(1+$D$16) -> 19.57375304 | E66: =F65*$D$17/(1+$D$16)+F67*(1-$D$17)/(1+$D$16) -> 18.2415452 | G66: =H65*$D$17/(1+$D$16)+H67*(1-$D$17)/(1+$D$16) -> 16.76387736 | I66: =J65*$D$17/(1+$D$16)+J67*(1-$D$17)/(1+$D$16) -> 15.07936075 | K66: =L65*$D$17/(1+$D$16)+L67*(1-$D$17)/(1+$D$16) -> 13.06541255 | M66: =N65*$D$17/(1+$D$16)+N67*(1-$D$17)/(1+$D$16) -> 10.39565914
B67: =C66*$D$17/(1+$D$16)+C68*(1-$D$17)/(1+$D$16) -> 13.65618092 | D67: =E66*$D$17/(1+$D$16)+E68*(1-$D$17)/(1+$D$16) -> 12.39616774 | F67: =G66*$D$17/(1+$D$16)+G68*(1-$D$17)/(1+$D$16) -> 10.99897579 | H67: =I66*$D$17/(1+$D$16)+I68*(1-$D$17)/(1+$D$16) -> 9.406728207 | J67: =K66*$D$17/(1+$D$16)+K68*(1-$D$17)/(1+$D$16) -> 7.503857948 | L67: =M66*$D$17/(1+$D$16)+M68*(1-$D$17)/(1+$D$16) -> 4.982678964 | N67: =IF(N35>$D$8,(N35-$D$8),0) -> 0
C68: =D67*$D$17/(1+$D$16)+D69*(1-$D$17)/(1+$D$16) -> 8.222110258 | E68: =F67*$D$17/(1+$D$16)+F69*(1-$D$17)/(1+$D$16) -> 7.026649729 | G68: =H67*$D$17/(1+$D$16)+H69*(1-$D$17)/(1+$D$16) -> 5.701426788 | I68: =J67*$D$17/(1+$D$16)+J69*(1-$D$17)/(1+$D$16) -> 4.191710178 | K68: =L67*$D$17/(1+$D$16)+L69*(1-$D$17)/(1+$D$16) -> 2.388216978 | M68: =N67*$D$17/(1+$D$16)+N69*(1-$D$17)/(1+$D$16) -> 0
D69: =E68*$D$17/(1+$D$16)+E70*(1-$D$17)/(1+$D$16) -> 4.386849706 | F69: =G68*$D$17/(1+$D$16)+G70*(1-$D$17)/(1+$D$16) -> 3.375474171 | H69: =I68*$D$17/(1+$D$16)+I70*(1-$D$17)/(1+$D$16) -> 2.294327947 | J69: =K68*$D$17/(1+$D$16)+K70*(1-$D$17)/(1+$D$16) -> 1.144681481 | L69: =M68*$D$17/(1+$D$16)+M70*(1-$D$17)/(1+$D$16) -> 0 | N69: =IF(N37>$D$8,(N37-$D$8),0) -> 0
E70: =F69*$D$17/(1+$D$16)+F71*(1-$D$17)/(1+$D$16) -> 1.96001879 | G70: =H69*$D$17/(1+$D$16)+H71*(1-$D$17)/(1+$D$16) -> 1.23638969 | I70: =J69*$D$17/(1+$D$16)+J71*(1-$D$17)/(1+$D$16) -> 0.5486501874 | K70: =L69*$D$17/(1+$D$16)+L71*(1-$D$17)/(1+$D$16) -> 0 | M70: =N69*$D$17/(1+$D$16)+N71*(1-$D$17)/(1+$D$16) -> 0
F71: =G70*$D$17/(1+$D$16)+G72*(1-$D$17)/(1+$D$16) -> 0.6581317023 | H71: =I70*$D$17/(1+$D$16)+I72*(1-$D$17)/(1+$D$16) -> 0.2629701215 | J71: =K70*$D$17/(1+$D$16)+K72*(1-$D$17)/(1+$D$16) -> 0 | L71: =M70*$D$17/(1+$D$16)+M72*(1-$D$17)/(1+$D$16) -> 0 | N71: =IF(N39>$D$8,(N39-$D$8),0) -> 0
G72: =H71*$D$17/(1+$D$16)+H73*(1-$D$17)/(1+$D$16) -> 0.1260425794 | I72: =J71*$D$17/(1+$D$16)+J73*(1-$D$17)/(1+$D$16) -> 0 | K72: =L71*$D$17/(1+$D$16)+L73*(1-$D$17)/(1+$D$16) -> 0 | M72: =N71*$D$17/(1+$D$16)+N73*(1-$D$17)/(1+$D$16) -> 0
H73: =I72*$D$17/(1+$D$16)+I74*(1-$D$17)/(1+$D$16) -> 0 | J73: =K72*$D$17/(1+$D$16)+K74*(1-$D$17)/(1+$D$16) -> 0 | L73: =M72*$D$17/(1+$D$16)+M74*(1-$D$17)/(1+$D$16) -> 0 | N73: =IF(N41>$D$8,(N41-$D$8),0) -> 0
I74: =J73*$D$17/(1+$D$16)+J75*(1-$D$17)/(1+$D$16) -> 0 | K74: =L73*$D$17/(1+$D$16)+L75*(1-$D$17)/(1+$D$16) -> 0 | M74: =N73*$D$17/(1+$D$16)+N75*(1-$D$17)/(1+$D$16) -> 0
J75: =K74*$D$17/(1+$D$16)+K76*(1-$D$17)/(1+$D$16) -> 0 | L75: =M74*$D$17/(1+$D$16)+M76*(1-$D$17)/(1+$D$16) -> 0 | N75: =IF(N43>$D$8,(N43-$D$8),0) -> 0
K76: =L75*$D$17/(1+$D$16)+L77*(1-$D$17)/(1+$D$16) -> 0 | M76: =N75*$D$17/(1+$D$16)+N77*(1-$D$17)/(1+$D$16) -> 0
L77: =M76*$D$17/(1+$D$16)+M78*(1-$D$17)/(1+$D$16) -> 0 | N77: =IF(N45>$D$8,(N45-$D$8),0) -> 0
M78: =N77*$D$17/(1+$D$16)+N79*(1-$D$17)/(1+$D$16) -> 0
N79: =IF(N47>$D$8,(N47-$D$8),0) -> 0

Sheet Black-Scholes (excl. dividends)
B2: Black-Scholes model (excluding dividends)
B6: Assumptions
B7: strike price | C7: K | D7: 180
B8: price of underlying | C8: S0 | D8: 185
B9: volatility | C9: σ | D9: 0.2
B10: risk-free rate | C10: r | D10: 0.0025
B11: time to maturity of option (days) | C11: t | D11: 80
B15: Calculation Call-Option
B16: time to maturity in years | C16: =D11/365 -> 0.2191780822
B17: d1 | C17: =(LN(D8/D7)+(D10+(D9^2)/2)*C16)/(D9*SQRT(C16)) -> 0.3452896888
B18: d2 | C18: =C17-(D9*SQRT(C16)) -> 0.2516567711
B19: N(d1) | C19: =NORMSDIST(C17) -> 0.6350617012
B20: N(d2) | C20: =NORMSDIST(C18) -> 0.5993468133
B21: price of Call-Option | C21: =(D8*C19)-D7*EXP(-D10*C16)*C20 -> 9.663085789
B24: Calculations Put-Optiom
B25: time to maturity in years | C25: =D11/365 -> 0.2191780822
B26: -d1 | C26: =-C17 -> -0.3452896888
B27: -d2 | C27: =-C18 -> -0.2516567711
B28: N(-d1) | C28: =NORMSDIST(C26) -> 0.3649382988
B29: N(-d2) | C29: =NORMSDIST(C27) -> 0.4006531867
B30: price of Put-Option | C30: =(D7*EXP(-D10*C25)*C29)-(D8*C28) -> 4.564482669

Sheet Black-Scholes (incl. dividends)
B2: Black-Scholes Merton model (including dividends and Greeks)
B5: Assumptions
B6: strike price | C6: K | D6: 20
B7: price of underlying | C7: S0 | D7: 20
B8: volatility | C8: σ | D8: 0.4
B9: risk-free rate | C9: r | D9: 0.005
B10: dividends | C10: q | D10: 0.01
B11: time to maturity in days | C11: t | D11: 10
B15: Calculation Call-Option
B16: time to maturity in years | C16: =D11/365 -> 0.02739726027
B17: e-qT | C17: =EXP(-D10*C16) -> 0.9997260649
B18: d1 | C18: =(LN(D7/D6)+(D9-D10+((D8^2)/2)*C16))/(D8*SQRT(C16)) -> -0.04241480179
B19: d2 | C19: =C18-(D8*SQRT(C16)) -> -0.1086232729
B20: N(d1) | C20: =NORMSDIST(C18) -> 0.4830840144
B21: N(d2) | C21: =NORMSDIST(C19) -> 0.4567506504
B22: price of Call-Option | C22: =(D7*C17*C20)-((D6*EXP(-D9*C16))*C21) -> 0.5252718924
B25: Calculation Put-Option
B26: time to maturity in years | C26: =D11/365 -> 0.02739726027
B27: e-qT | C27: =EXP(-D10*C26) -> 0.9997260649
B28: -d1 | C28: =-C18 -> 0.04241480179
B29: -d2 | C29: =-C19 -> 0.1086232729
B30: N(-d1) | C30: =NORMSDIST(C28) -> 0.5169159856
B31: N(-d2) | C31: =NORMSDIST(C29) -> 0.5432493496
B32: price of Put-Option | C32: =(D6*EXP(-D9*C26)*C31)-(D7*C27*C30) -> 0.5280110555
B34: distribution function of the standard normal distribution | C34: =(1/(SQRT(2*PI())))*EXP(-(0.5*C18^2)) -> 0.3985835901
B36: Greeks | C36: Call | D36: Put
B37: Delta | C37: =$C$20*$C$17 -> 0.4829516808 | D37: =C20*C17-1 -> -0.5170483192
B38: Gamma | C38: =($C$34*$C$17)/($D$7*$D$8*$C$16^0.5) -> 0.300924034 | D38: =($C$34*$C$17)/($D$7*$D$8*$C$16^0.5) -> 0.300924034
B39: Theta | C39: =(D10*D7*C17*C20-(D7*C17*D8)/(2*C16^0.5)*C34-D9*D6*EXP(-D9*C16)*C21)/365 -> -0.02624287003 | D39: =(D9*D6*EXP(-D9*C16)*C31-D10*D7*C27*C30-(D7*C27*D8)/(2*C26^0.5)*C34)/365 -> -0.02651673006
B40: Vega | C40: =C16^0.5*D7*C17*C34/100 -> 0.01319119053 | D40: =C16^0.5*D7*C17*C34/100 -> 0.01319119053
B41: Rho | C41: =C16*D6*EXP(-D9*C16)*C21/100 -> 0.002502400472 | D41: =-C26*D6*EXP(-D9*C26)*C31/100 -> -0.002976301024

Sheet Black-Scholes (incl. Greeks)
B3: Black-Scholes model including derivation of Greeks
B8: Assumptions
B9: strike price | C9: K | D9: 20
B10: price of underlying | C10: S0 | D10: 20
B11: volatility | C11: σ | D11: 0.4
B12: risk-free rate | C12: r | D12: 0.005
B13: time to maturity of option in days | C13: t | D13: 10
B17: Calculations | E17: Greeks | F17: Call | G17: Put
B18: time to maturity of option in years | C18: =D13/365 -> 0.02739726027 | E18: Delta | F18: =C23 -> 0.5140292039 | G18: =C23-1 -> -0.4859707961
B19: d1 | C19: =(LN(D10/D9)+(D12+(D11^2)/2)*C18)/(D11*SQRT(C18)) -> 0.03517325027 | E19: Gamma | F19: =C27/(D10*D11*SQRT(C18)) -> 0.3010910635 | G19: =C27/(D10*D11*SQRT(C18)) -> 0.3010910635
B20: -d1 | C20: =-C19 -> -0.03517325027 | E20: Theta | F20: =-((D10*C27*D11)/(2*SQRT(C18))-(D12*D9*(EXP(-(D12*C18)))*C25))/365 -> -0.02626344833 | G20: =-(((D10*C27*D11)/(2*SQRT(C18)))+(D12*D9*(EXP(-(D12*C18)))*C26))/365 -> -0.0265373834
B21: d2 | C21: =C19-(D11*SQRT(C18)) -> -0.03103522082 | E21: Vega | F21: =D10*C27*SQRT(C18)/100 -> 0.01319851237 | G21: =D10*C27*SQRT(C18)/100 -> 0.01319851237
B22: -d2 | C22: =-C21 -> 0.03103522082 | E22: Rho | F22: =D9*C18*EXP((-D12*C18))*C25/100 -> 0.002671528399 | G22: =-D9*C18*EXP((-D12*C18))*C26/100 -> -0.002807173098
B23: N(d1) | C23: =NORMSDIST(C19) -> 0.5140292039
B24: N(-d1) | C24: =NORMSDIST(C20) -> 0.4859707961
B25: N(d2) | C25: =NORMSDIST(C21) -> 0.4876207255
B26: N(-d2) | C26: =NORMSDIST(C22) -> 0.5123792745
B27: distribution function of the standard normal distribution | C27: =(1/(SQRT(2*PI())))*EXP(-(0.5*C19^2)) -> 0.3986955795
B28: price Call-Option | C28: =(D10*C23)-D9*EXP(-D12*C18)*C25 -> 0.5295054231
B29: price Put-Option | C29: =(D9*EXP(-D12*C18)*C26)-(D10*C24) -> 0.5267658847

Sheet Put-call parity
B2: Put Call Parity
B4: Price of Call given | G4: Price of Put given
B7: Assumptions | G7: Assumptions
B8: price of Call t=0 | C8: c | D8: 8.9281 | G8: price of Put t=0 | H8: p | I8: 9.84
B9: strike price | C9: K | D9: 61 | G9: strike price | H9: K | I9: 25
B10: price of underlying | C10: S0 | D10: 61.73 | G10: price of underlying | H10: S0 | I10: 20
B11: risk-free rate | C11: r | D11: 0.01 | G11: risk-free rate | H11: r | I11: 0.02
B12: time to maturity in days | C12: t | D12: 365 | G12: time to maturity in days | H12: t | I12: 120
B16: Calculation | G16: Calculation
B17: time to maturity in years | C17: =D12/365 -> 1 | G17: time to maturity in years | H17: =I12/365 -> 0.3287671233
B18: price of the Put-Option | C18: =D8-D10+(D9*EXP(-D11*C17)) -> 7.591139859 | G18: price of the Call-Option | H18: =I8+I10-I9*EXP(-I11*H17) -> 5.003844305

Sheet Long call
B2: Long call
B4: Assumptions
B5: price of Call-Option at t=0 | C5: c | D5: 3
B6: strike price | C6: K | D6: 6
B7: price of underlying | C7: S0 | D7: 8
B10: Calculations
B11: price of underlying | C11: Exercise option? | D11: profit / loss
B13: =D7 -> 8 | C13: =IF(D7>D6,"yes","no") -> yes | D13: =IF(D7<D6,-D5,D7-D6-D5) -> -1
B16: price of underlying | C16: profit / loss
B18: 0 | C18: =IF(B18<$D$6,-$D$5,B18-$D$6-$D$5) -> -3
B19: 2 | C19: =IF(B19<$D$6,-$D$5,B19-$D$6-$D$5) -> -3
B20: 4 | C20: -3
B21: 6 | C21: -3
B22: 8 | C22: -1
B23: 10 | C23: 1
B24: 12 | C24: 3
B25: 14 | C25: 5
B26: 16 | C26: 7
B27: 18 | C27: 9
B28: 20 | C28: 11
B29: 22 | C29: 13
B30: 24 | C30: 15
B31: 26 | C31: 17
B32: 28 | C32: 19
B33: 30 | C33: 21
B34: 32 | C34: 23
B35: 34 | C35: 25
B36: 36 | C36: 27
B37: 38 | C37: 29
B38: 40 | C38: 31

Sheet Short call
B2: Short call
B4: Assumptions
B5: price of Call-Option at t=0 | C5: c | D5: 3
B6: strike price | C6: K | D6: 6
B7: price of underlying | C7: S0 | D7: 8
B10: Calculations
B11: price of underlying | C11: Exercise option? | D11: profit / loss
B13: =D7 -> 8 | C13: =IF(D7>D6,"yes","no") -> yes | D13: =IF(D7<D6,D5,D5+D6-D7) -> 1
B16: price of underlying | C16: profit / loss
B18: 0 | C18: =IF(B18<$D$6,$D$5,$D$6+$D$5-B18) -> 3
B19: 2 | C19: =IF(B19<$D$6,$D$5,$D$6+$D$5-B19) -> 3
B20: 4 | C20: 3
B21: 6 | C21: 3
B22: 8 | C22: 1
B23: 10 | C23: -1
B24: 12 | C24: -3
B25: 14 | C25: -5
B26: 16 | C26: -7
B27: 18 | C27: -9
B28: 20 | C28: -11
B29: 22 | C29: -13
B30: 24 | C30: -15
B31: 26 | C31: -17
B32: 28 | C32: -19
B33: 30 | C33: -21
B34: 32 | C34: -23
B35: 34 | C35: -25
B36: 36 | C36: -27
B37: 38 | C37: -29
B38: 40 | C38: -31

Sheet Long put
B2: Long put
B4: Assumptions
B5: price of Put-Option at t=0 | C5: p | D5: 2
B6: strike price | C6: K | D6: 20
B7: price of underlying | C7: S0 | D7: 10
B10: Calculations
B11: price of underlying | C11: Exercise option? | D11: profit / loss
B13: =D7 -> 10 | C13: =IF(D7<D6,"yes","no") -> yes | D13: =IF(D7>D6,-D5,D6-D7-D5) -> 8
B16: price of underlying | C16: profit /loss
B18: 0 | C18: =IF(B18>$D$6,-$D$5,$D$6-B18-$D$5) -> 18
B19: 2 | C19: =IF(B19>$D$6,-$D$5,$D$6-B19-$D$5) -> 16
B20: 4 | C20: 14
B21: 6 | C21: 12
B22: 8 | C22: 10
B23: 10 | C23: 8
B24: 12 | C24: 6
B25: 14 | C25: 4
B26: 16 | C26: 2
B27: 18 | C27: 0
B28: 20 | C28: -2
B29: 22 | C29: -2
B30: 24 | C30: -2
B31: 26 | C31: -2
B32: 28 | C32: -2
B33: 30 | C33: -2
B34: 32 | C34: -2
B35: 34 | C35: -2
B36: 36 | C36: -2
B37: 38 | C37: -2
B38: 40 | C38: -2

Sheet Short put
B2: Short put
B4: Assumptions
B5: price of Put-Option at t=0 | C5: p | D5: 2
B6: strike price | C6: K | D6: 20
B7: price of underlying | C7: S0 | D7: 10
B10: Calculations
B11: price of underlying | C11: Exercise option? | D11: profit / loss
B13: =D7 -> 10 | C13: =IF(D7<D6,"yes","no") -> yes | D13: =IF(D7>D6,D5,D5+D7-D6) -> -8
B16: price of underlying | C16: profit / loss
B18: 0 | C18: =IF(B18>$D$6,$D$5,B18+$D$5-$D$6) -> -18
B19: 2 | C19: =IF(B19>$D$6,$D$5,B19+$D$5-$D$6) -> -16
B20: 4 | C20: -14
B21: 6 | C21: -12
B22: 8 | C22: -10
B23: 10 | C23: -8
B24: 12 | C24: -6
B25: 14 | C25: -4
B26: 16 | C26: -2
B27: 18 | C27: 0
B28: 20 | C28: 2
B29: 22 | C29: 2
B30: 24 | C30: 2
B31: 26 | C31: 2
B32: 28 | C32: 2
B33: 30 | C33: 2
B34: 32 | C34: 2
B35: 34 | C35: 2
B36: 36 | C36: 2
B37: 38 | C37: 2
B38: 40 | C38: 2

Sheet Black 76
B3: Black 76
B8: Assumptions
B9: future price | C9: 40
B10: strike price | C10: 38
B11: risk-free interest rate | C11: 0.025
B12: vola | C12: 0.3
B13: time to maturity | C13: 0.2
B17: Calculations
B18: d1 | C18: =(LN(C9/C10)+(C12^2/2)*C13)/(C12*C13^0.5) -> 0.4493996828
B19: -d1 | C19: =-C18 -> -0.4493996828
B20: d2 | C20: =C18-C12*C13^0.5 -> 0.3152356041
B21: -d2 | C21: =-C20 -> -0.3152356041
B22: N(d1) | C22: =NORMSDIST(C18) -> 0.6734283199
B23: N(-d1) | C23: =NORMSDIST(C19) -> 0.3265716801
B24: N(d2) | C24: =NORMSDIST(C20) -> 0.6237086128
B25: N(-d2) | C25: =NORMSDIST(C21) -> 0.3762913872
B26: price Call-Option | C26: =EXP(-C11*C13)*(C9*C22-C10*C24) -> 3.22006487
B27: price Put-Option | C27: =EXP(-C11*C13)*(C10*C25-C9*C23) -> 1.230039911

Sheet Garman-Kohlhagen
B3: Garman-Kohlhagen Model
B8: Assumptions
B9: FX price 1 | C9: 40
B10: FX price 2 | C10: 38
B11: risk-free interest rate | C11: 0.025
B12: foeign risk-free rate | C12: 0.04
B13: vola | C13: 0.3
B14: time to maturity | C14: 0.2
B18: Calculations
B19: d1 | C19: =(LN(C9/C10)+(C11-C12+C13^2/2)*C14)/(C13*C14^0.5) -> 0.427039003
B20: -d1 | C20: =-C19 -> -0.427039003
B21: d2 | C21: =C19-C13*C14^0.5 -> 0.2928749244
B22: -d2 | C22: =-C21 -> -0.2928749244
B23: N(d1) | C23: =NORMSDIST(C19) -> 0.6653245402
B24: N(-d1) | C24: =NORMSDIST(C20) -> 0.3346754598
B25: N(d2) | C25: =NORMSDIST(C21) -> 0.6151911218
B26: N(-d2) | C26: =NORMSDIST(C22) -> 0.3848088782
B27: price Call-Option | C27: =C9*EXP(-C12*C14)*C23-C10*EXP(-C11*C14)*C25 -> 3.140259058
B28: price Put-Option | C28: =C10*EXP(-C11*C14)*C26-C9*EXP(-C12*C14)*C24 -> 1.269456674

Sheet Index futures
B2: Calculation of futures price - index future
B4: Assumptions
B5: Spot price | C5: 400
B6: Financing costs | C6: 250
B7: Income lost | C7: 100
B9: Calculations
B10: Futures price | C10: =(C5+(C6-C7)) -> 550

Sheet Interest rate futures
B2: Calculation of futures price, fixed income futures
B4: Assumptions
B5: Spot position | C5: 100
B6: Price factor | C6: 0.7
B7: Coupon return | C7: 6.5
B8: Financing cost | C8: 1
B10: Calculations
B11: Futures price | C11: =((C5/C6)-(C7+C8)) -> 135.3571429

Sheet Currency futures
B2: Calculation of futures price, currency futures
B4: Assumptions
B5: Spot price of currency | C5: 1.12
B6: Financing cost currency | C6: 0.0021
B7: Income currency | C7: 0.001
B9: Calculations
B10: Futures price | C10: =(C5+(C6-C7)) -> 1.1211

Sheet Commodity futures
B2: Calculation of futures price, commodity futures
B4: Assumptions
B5: Spot price | C5: 100
B6: Financing cost | C6: 2
B7: Convenience Yield | C7: 0.78
B8: Storage cost | C8: 0.2
B10: Calculations
B11: Futures price | C11: =C5+((C6+C8)-C7) -> 101.42

Sheet Futures on indiv. securities
B2: Single Stock Futures
B4: Assumptions
B5: Spot price | C5: 20
B6: Financing cost | C6: 1.34
B7: Income lost | C7: 0.2
B9: Calculations
B10: Futures price | C10: =(C5+(C6-C7)) -> 21.14

Sheet Swap Valuation
B3: Swap Valuation
B5: Assumptions
B6: principal: | C6: 10000000
B7: fixed rate (p.a.): | C7: 0.02
B8: LIBOR rate (p.a.): | C8: 0.005
B9: frequency of payments: | C9: annually | D9: =IF(C9="annually",12,IF(C9="semi-annually",6,3)) -> 12
B10: valuation date: | C10: 2022-08-25
B11: next payment dates: | C11: 2023-08-20 | D11: =EDATE(C11,$D$9) -> 2024-08-20 | E11: =EDATE(D11,$D$9) -> 2025-08-20 | F11: =EDATE(E11,$D$9) -> 2026-08-20 | G11: =EDATE(F11,$D$9) -> 2027-08-20
B14: days till the next payment | C14: =$C$11-$C$10 -> 360 | D14: =D11-C11 -> 366 | E14: =E11-D11 -> 365 | F14: =F11-E11 -> 365 | G14: =G11-F11 -> 365
B16: Cash Flow (basis 365) | C16: =$C$7*C14/365 -> 0.0197260274 | D16: =$C$7*D14/365 -> 0.02005479452 | E16: =$C$7*E14/365 -> 0.02 | F16: =$C$7*F14/365 -> 0.02 | G16: =$C$7*G14/365 -> 0.02
B17: Cash Flow (basis 360) | C17: =$C$7*C14/360 -> 0.02 | D17: =$C$7*D14/360 -> 0.02033333333 | E17: =$C$7*E14/360 -> 0.02027777778 | F17: =$C$7*F14/360 -> 0.02027777778 | G17: =$C$7*G14/360 -> 0.02027777778
B19: Discount Rates | C19: ='Zero Rates'!E8 -> 0.9901970492 | D19: ='Zero Rates'!E9 -> 0.9717479914 | E19: ='Zero Rates'!E10 -> 0.9473419063 | F19: ='Zero Rates'!E11 -> 0.9184688025 | G19: ='Zero Rates'!E12 -> 0.8868494746
B21: PV Fixed (basis 365) | C21: =C16*C19*$C$6 -> 195326.5412 | D21: =D16*D19*$C$6 -> 194882.0629 | E21: =E16*E19*$C$6 -> 189468.3813 | F21: =F16*F19*$C$6 -> 183693.7605 | G21: =G16*G19*$C$6+$C$6 -> 10177369.89
B22: PV Fixed (basis 360) | C22: =C17*C19*$C$6 -> 198039.4098 | D22: =D17*D19*$C$6 -> 197588.7583 | E22: =E17*E19*$C$6 -> 192099.8865 | F22: =F17*F19*$C$6 -> 186245.0627 | G22: =G17*G19*$C$6+$C$6 -> 10179833.37
B24: Cumulative PV Fixed (basis 365) | C24: =C21 -> 195326.5412 | D24: =C24+D21 -> 390208.6042 | E24: 579676.9854 | F24: 763370.7459 | G24: 10940740.64
B25: Cumulative PV Fixed (basis 360) | C25: =C22 -> 198039.4098 | D25: 395628.1681 | E25: 587728.0546 | F25: 773973.1174 | G25: 10953806.48
B27: PV Variable (basis 365) | C27: =(1+C14/365*$C$8)*$C$6 -> 10049315.07
B28: PV Variable (basis 360) | C28: =(1+C14/360*$C$8)*$C$6 -> 10050000
B30: Value Receiver Swap (basis 365) | C30: =G24-C27 -> 891425.5723
B31: Value Receiver Swap (basis 360) | C31: =G25-C28 -> 903806.4831
B33: Value Payer Swap (basis 365) | C33: =C27-G24 -> -891425.5723
B34: Value Payer Swap (basis 360) | C34: =C28-G25 -> -903806.4831

Sheet Zero Rates
B3: Zero Rates
B6: SWAP Maturity | C6: Yield | D6: Zero Rate | E6: Discount Factor
B8: 1 | C8: 0.0099 | D8: =C8 -> 0.0099 | E8: =1/(1+D8) -> 0.9901970492
B9: 2 | C9: 0.0144 | D9: =((1/E9)^(1/$B9))-1 -> 0.01443254594 | E9: =(100-C9*100*(1/(1+D8)))/(C9*100+100) -> 0.9717479914
B10: 3 | C10: 0.0181 | D10: 0.01819528983 | E10: =(100-C10*100*(E8+E9))/(C10*100+100) -> 0.9473419063
B11: 4 | C11: 0.0213 | D11: 0.02148947847 | E11: =(100-C11*100*(E9+E10+E8))/(C11*100+100) -> 0.9184688025
B12: 5 | C12: 0.024 | D12: 0.02430670928 | E12: =(100-C12*100*(E10+E11+E9+E8))/(C12*100+100) -> 0.8868494746
B13: 6 | C13: 0.0262 | D13: 0.02663299834 | E13: =(100-C13*100*(E11+E12+E10+E9+E8))/(C13*100+100) -> 0.8540999251
B14: 7 | C14: 0.0282 | D14: 0.02878397547 | E14: =(100-C14*100*(E12+E13+E11+E10+E9+E8))/(C14*100+100) -> 0.8198429438
B15: 8 | C15: 0.0302 | D15: 0.03098316086 | E15: =(100-C15*100*(E13+E14+E12+E11+E10+E9+E8))/(C15*100+100) -> 0.7834069575
B16: 9 | C16: 0.032 | D16: 0.03300148117 | E16: =(100-C16*100*(E14+E15+E13+E12+E11+E10+E9+E8))/(C16*100+100) -> 0.7466060449
B17: 10 | C17: 0.0337 | D17: 0.0349526814 | E17: =(100-C17*100*(E15+E16+E14+E13+E12+E11+E10+E9+E8))/(C17*100+100) -> 0.7092430019
B21: Note:
B22: Using bootstraping on SWAP rates might give a better approximation.
B23: However, using bond yields can be used as a starting point.

Sheet Random Walk
B3: Random Walk
B6: Paramenter
B7: Start | C7: 100
B8: Drift | C8: 0.4 | F8: With F9 you create a new Random walk
B9: Volatility | C9: 11
B10: Steps | C10: 12
B12: Drift | C12: =LN(1+C8)/C10 -> 0.02803935305 | E12: Volatility | F12: =C9/SQRT(C10) -> 3.175426481
B13: Periods | C13: Random Walk
B14: 0 | C14: =C7 -> 100 | E14: Trend | F14: Random number
B15: 1 | C15: =C14*EXP(E15) -> 160.4025229 | E15: =$C$12+$F$12*F15 -> 0.472516238 | F15: =NORMINV(RAND(),0,1) -> 0.1399739177
B16: 2 | C16: =C15*EXP(E16) -> 234.4049585 | E16: =$C$12+$F$12*F16 -> 0.3793637877 | F16: =NORMINV(RAND(),0,1) -> 0.1106385038
B17: 3 | C17: 212.0277387 | E17: -0.1003331029 | F17: -0.04042683926
B18: 4 | C18: 618013.1944 | E18: 7.977547977 | F18: 2.50344597
B19: 5 | C19: 403991.8369 | E19: -0.4251151352 | F19: -0.1427066541
B20: 6 | C20: 79635.70165 | E20: -1.623932167 | F20: -0.52023611
B21: 7 | C21: 326556.0345 | E21: 1.41113905 | F21: 0.435563445
B22: 8 | C22: 36091025.75 | E22: 4.705197963 | F22: 1.472922972
B23: 9 | C23: 434340839.5 | E23: 2.48778533 | F23: 0.774619092
B24: 10 | C24: 54123649.57 | E24: -2.082558335 | F24: -0.6646658962
B25: 11 | C25: 18429344.6 | E25: -1.077327027 | F25: -0.3481001328
B26: 12 | C26: 58582954.43 | E26: 1.156499565 | F26: 0.3553728039
B27: 13 | C27: 244370959.6 | E27: 1.428243623 | F27: 0.4409499883
B28: 14 | C28: 1055396.983 | E28: -5.444770413 | F28: -1.723488105
B29: 15 | C29: 177597.8502 | E29: -1.782150537 | F29: -0.5700619747
B30: 16 | C30: 189959.1795 | E30: 0.06728747875 | F30: 0.01235995415
B31: 17 | C31: 9496.764573 | E31: -2.995858035 | F31: -0.9522807115
B32: 18 | C32: 305.4422268 | E32: -3.436945798 | F32: -1.091187333
B33: 19 | C33: 275.6804582 | E33: -0.1025182155 | F33: -0.04111497128
B34: 20 | C34: 506.9801126 | E34: 0.6092293423 | F34: 0.1830273801
B35: 21 | C35: 36665.60046 | E35: 4.2811225 | F35: 1.339373836
B36: 22 | C36: 1783.168403 | E36: -3.023447215 | F36: -0.9609690499
B37: 23 | C37: 56.00541948 | E37: -3.4606986 | F37: -1.098667525
B38: 24 | C38: 30.20678777 | E38: -0.6173818029 | F38: -0.2032549517
B39: 25 | C39: 3777.21546 | E39: 4.828675707 | F39: 1.511808377
B40: 26 | C40: 36962.77047 | E40: 2.280924115 | F40: 0.7094747039
B41: 27 | C41: 888.5751102 | E41: -3.728047302 | F41: -1.182860532
B42: 28 | C42: 933.2913264 | E42: 0.0490982191 | F42: 0.006631822899
B43: 29 | C43: 57.30625912 | E43: -2.790307547 | F43: -0.8875490953
B44: 30 | C44: 555.0256134 | E44: 2.270604411 | F44: 0.7062248399
B45: 31 | C45: 2681.919349 | E45: 1.575273729 | F45: 0.4872524638
B46: 32 | C46: 170891.2847 | E46: 4.154494879 | F46: 1.299496478
B47: 33 | C47: 19595.57503 | E47: -2.165723816 | F47: -0.6908562305
B48: 34 | C48: 238.4110803 | E48: -4.409062644 | F48: -1.397324745
B49: 35 | C49: 5.636010523 | E49: -3.744819951 | F49: -1.188142546
B50: 36 | C50: 26.1063738 | E50: 1.53300303 | F50: 0.4739406459
B51: 37 | C51: 23.51068782 | E51: -0.1047243727 | F51: -0.04180973062
B52: 38 | C52: 28.69108397 | E52: 0.1991312929 | F52: 0.05387998775
B53: 39 | C53: 199.0018134 | E53: 1.936727526 | F53: 0.6010808892
B54: 40 | C54: 82.97363922 | E54: -0.8747909796 | F54: -0.2843178194
B55: 41 | C55: 6.868017422 | E55: -2.491647478 | F55: -0.7934955655
B56: 42 | C56: 12.30958947 | E56: 0.5835031105 | F56: 0.1749257181
B57: 43 | C57: 0.04646556271 | E57: -5.579422418 | F57: -1.765892489
B58: 44 | C58: 0.03244252501 | E58: -0.359241389 | F58: -0.121961804
B59: 45 | C59: 0.0008834054275 | E59: -3.603441098 | F59: -1.143619754
B60: 46 | C60: 0.002946862254 | E60: 1.204711998 | F60: 0.3705557826
B61: 47 | C61: 0.2122822803 | E61: 4.277175938 | F61: 1.338130992
B62: 48 | C62: 7.806586771 | E62: 3.604806214 | F62: 1.126389442
B63: 49 | C63: 2.005272852 | E63: -1.359187698 | F63: -0.4368632244
B64: 50 | C64: 0.3941922907 | E64: -1.626696578 | F64: -0.5211066739

Sheet Random NO
B2: Random numbers
B5: Random NO Intervall [-5 ; 5] | C5: Sum of 5 random NO Intervall [-5 ; 5] | D5: Sum of 10 random NO Intervall [-5 ; 5] | F5: F9 create a new one
B6: =10*(RAND()-0.5) -> -3.3027747 | C6: =2*(RAND()+RAND()+RAND()+RAND()+RAND()-2.5) -> 1.311247229 | D6: =RAND()+RAND()+RAND()+RAND()+RAND()+RAND()+RAND()+RAND()+RAND()+RAND()-5 -> -0.1437371731
B7: =10*(RAND()-0.5) -> 0.8953932627 | C7: =2*(RAND()+RAND()+RAND()+RAND()+RAND()-2.5) -> -0.7043030231 | D7: =RAND()+RAND()+RAND()+RAND()+RAND()+RAND()+RAND()+RAND()+RAND()+RAND()-5 -> -0.36280209
B8: -0.4060130864 | C8: -0.858734051 | D8: 1.254447088
B9: -4.239129062 | C9: 0.1304340709 | D9: 0.1827276508
B10: -3.050979277 | C10: 1.061007486 | D10: 0.5397414817
B11: -1.165188264 | C11: -0.4087030506 | D11: 0.1271239704
B12: 0.8408309632 | C12: -0.09282138185 | D12: -0.7122246712
B13: 4.291756173 | C13: 1.386923575 | D13: 1.580082592
B14: -3.400546969 | C14: -3.029561393 | D14: -1.770090162
B15: -3.947246731 | C15: 1.083022451 | D15: -1.493939855
B16: 4.807383754 | C16: 1.252069246 | D16: 0.155940652
B17: -3.406682781 | C17: 1.404087799 | D17: -0.2207643822
B18: -4.914525924 | C18: 0.02342598667 | D18: 0.7277822487
B19: -3.804678025 | C19: 0.9575409081 | D19: 0.6711992788
B20: -4.279201187 | C20: -3.015943729 | D20: 0.7689229318
B21: -0.7222625192 | C21: 2.06503402 | D21: 0.3151625357
B22: 3.078672381 | C22: 1.595848873 | D22: 0.2330046082
B23: -4.688906384 | C23: 0.9890398702 | D23: -1.148676716
B24: 1.206977653 | C24: -1.636939904 | D24: 0.3101540019
B25: -3.484122142 | C25: -0.5062626156 | D25: -1.128381491
B26: 1.510202471 | C26: -0.892729172 | D26: -1.143547742
B27: 4.789277043 | C27: -0.01502470292 | D27: -1.215814819
B28: -3.213303031 | C28: 0.3917472703 | D28: -1.120915062
B29: 4.307634995 | C29: 0.8145233874 | D29: 0.1532888972
B30: -0.7005300105 | C30: -0.113648443 | D30: -1.150620606
B31: -1.570974433 | C31: -1.68325696 | D31: -0.9128230151
B32: -0.4937272087 | C32: 1.833879543 | D32: 0.624724232
B33: -1.198807018 | C33: -0.1347549815 | D33: 0.8712002089
B34: -0.5441191095 | C34: -0.1234917437 | D34: -0.66815636
B35: 1.806134857 | C35: -2.411328053 | D35: -0.2834868585
B36: 4.710946821 | C36: -0.1356771676 | D36: -1.661750033
B37: 3.582002202 | C37: 1.73650274 | D37: -1.83806189
B38: 2.128842255 | C38: -0.3056336277 | D38: -1.315538451
B39: -2.321840544 | C39: -2.01177985 | D39: -0.1652413345
B40: -1.382755095 | C40: -2.590073712 | D40: -0.07308902878
B41: -2.049567551 | C41: -0.7292896231 | D41: -1.453394244
B42: -3.392360676 | C42: 0.3243400681 | D42: 1.107098837
B43: 4.212053813 | C43: 1.036622138 | D43: -0.513347068
B44: -1.39126416 | C44: -0.7324257053 | D44: -0.004578834091
B45: -4.822942071 | C45: -2.437537509 | D45: -1.171627941
B46: -4.413666469 | C46: -1.148335329 | D46: 0.9930954945
B47: 0.7259006534 | C47: -0.1177975656 | D47: -0.05774962571
B48: -2.076262074 | C48: -0.486446891 | D48: 0.3155650897
B49: 4.106797663 | C49: -1.810633015 | D49: 0.6057934278
B50: -4.706355643 | C50: 1.75684036 | D50: -1.204911406
B51: -2.001868169 | C51: 2.767730871 | D51: 1.353728606
B52: -4.284744311 | C52: -0.8489254145 | D52: -0.1006122982
B53: 2.552415171 | C53: 0.2978094887 | D53: -0.7782005942
B54: 2.896864832 | C54: 1.461242511 | D54: 0.1406338062
B55: -1.287407601 | C55: -0.7322212621 | D55: 0.6772068601
B56: 3.555865497 | C56: -1.443507972 | D56: 2.00171309
B57: 0.2445064227 | C57: 0.9774041761 | D57: -0.2748965846
B58: -1.428581929 | C58: -1.743888728 | D58: -0.899204276
B59: 4.585664752 | C59: 0.04258012554 | D59: 0.2353292558
B60: 2.57522896 | C60: 0.06137225367 | D60: 1.916198933
B61: 2.313853382 | C61: 0.2076263531 | D61: 1.960622005
B62: -0.3456325012 | C62: 0.2522303891 | D62: 0.8169175167
B63: 0.452803553 | C63: -0.6131121527 | D63: 0.5571087362
B64: -2.346337724 | C64: -1.856495543 | D64: 0.2361458985
B65: -2.161467122 | C65: -2.783498072 | D65: 0.244418124
B66: 0.7690128151 | C66: 1.51748454 | D66: -0.100812524
B67: -2.493849398 | C67: -0.77448572 | D67: -0.1986659741
B68: -0.5558518684 | C68: 1.441531415 | D68: -1.538358648
B69: -4.159547206 | C69: 0.7436812181 | D69: 0.5239766356
B70: -0.05739009619 | C70: -0.389930126 | D70: 2.097742148
B71: =10*(RAND()-0.5) -> -2.220872681 | C71: =2*(RAND()+RAND()+RAND()+RAND()+RAND()-2.5) -> -1.734774986 | D71: =RAND()+RAND()+RAND()+RAND()+RAND()+RAND()+RAND()+RAND()+RAND()+RAND()-5 -> -1.142931916
B72: 0.858244827 | C72: -0.4650746052 | D72: -0.8365063747
B73: -3.324049389 | C73: -2.867717205 | D73: 0.7219044222
B74: -0.7367987263 | C74: -2.358935736 | D74: -1.209786447
B75: -4.434117344 | C75: 0.4522041621 | D75: 0.3322700815
B76: 3.97163745 | C76: -0.4610005387 | D76: -0.9408905412
B77: -4.305101967 | C77: -1.168981207 | D77: -1.709079582
B78: 1.112337195 | C78: -1.474367138 | D78: -1.089521333
B79: -1.448369965 | C79: 0.4738477912 | D79: 0.0435753419
B80: -3.552299825 | C80: -1.725237742 | D80: -0.5932048509
B81: 2.035541212 | C81: 3.091300663 | D81: -0.6289894286
B82: 0.7109915501 | C82: -1.387692739 | D82: 1.316022611
B83: -3.43040868 | C83: 1.805713054 | D83: -0.3630580983
B84: 3.562146452 | C84: 1.041757295 | D84: 0.02059498986
B85: -4.242319794 | C85: 0.8140800942 | D85: -0.9426082686
B86: -2.971213031 | C86: -1.336142408 | D86: -1.451284975
B87: -3.898963002 | C87: 0.0602317544 | D87: -0.3748085572
B88: 4.219387252 | C88: -0.7685465207 | D88: 0.6271565485
B89: -3.050034844 | C89: -0.0221898797 | D89: -0.5608175231
B90: -2.237131145 | C90: 0.6985643926 | D90: -1.081914397
B91: 2.369113898 | C91: -2.298558305 | D91: -0.3579968731
B92: -1.696243116 | C92: 0.4065849778 | D92: -0.8281470602
B93: 3.144157256 | C93: -1.288950941 | D93: -0.5502778768
B94: 3.989644532 | C94: -0.1543266141 | D94: -0.3859096177
B95: -2.466965441 | C95: 0.1276138513 | D95: 0.3876712217
B96: -2.160616443 | C96: -0.9730604314 | D96: 0.2582735811
B97: 1.565194928 | C97: -0.1455368149 | D97: 0.1482710866
B98: 3.132975768 | C98: 1.84418938 | D98: -0.1755983085
B99: -1.696271688 | C99: -0.4341231239 | D99: -0.2392647312
B100: -3.349935133 | C100: -0.1268517537 | D100: -0.8218600481
B101: 0.9598983829 | C101: -1.450395701 | D101: 0.3959379339
B102: 0.317730017 | C102: -0.05208468983 | D102: -0.2616033597
B103: 3.2349011 | C103: 1.235503147 | D103: -0.127649587
B104: 2.137184698 | C104: 1.329065536 | D104: -0.5161027787

Sheet Disclaimer and Help
